bitfinex-derivatives/quotes_BTCF0:USTF0_20250912
["timestamp","ask_amount","ask_price","bid_price","bid_amount"]
[1757708711413,2.09857572,116150.0,116140.0,0.58]
[1757708711609,2.09857572,116150.0,116140.0,0.86013952]
[1757708711909,2.09857572,116150.0,116140.0,0.58]
[1757708712109,1.30013572,116150.0,116140.0,0.86013952]
[1757708712502,1.16006596,116150.0,116140.0,0.88186952]
[1757708712703,1.95850596,116150.0,116140.0,1.03544928]
[1757708712902,0.98690596,116150.0,116140.0,1.03544928]
[1757708713109,1.70850596,116150.0,116140.0,0.61524]
[1757708713310,0.91006596,116150.0,116140.0,1.03544928]
[1757708713512,1.70850596,116150.0,116140.0,1.03544928]
[1757708716014,0.91006596,116150.0,116140.0,1.03544928]
[1757708716307,1.70850596,116150.0,116140.0,1.03544928]
[1757708717115,0.89705596,116150.0,116140.0,1.03544928]
[1757708717310,1.69549596,116150.0,116140.0,1.28544928]
[1757708717518,1.66480275,116150.0,116140.0,1.28544928]
[1757708719013,0.86636275,116150.0,116140.0,1.28544928]
[1757708719203,1.64303275,116150.0,116140.0,1.28544928]
[1757708719408,0.84459275,116150.0,116140.0,1.28544928]
[1757708719815,0.48379275,116150.0,116140.0,1.28544928]
[1757708720313,0.12299275,116150.0,116140.0,1.28544928]
[1757708722413,0.1029673,116150.0,116140.0,1.28544928]
[1757708727513,0.1029673,116150.0,116140.0,2.08376928]
[1757708728913,0.0820049,116150.0,116140.0,2.08376928]
[1757708735522,0.11069082,116150.0,116140.0,2.08376928]
[1757708736424,0.11069082,116150.0,116140.0,1.28544928]
[1757708736625,0.11069082,116150.0,116140.0,2.08360928]
[1757708737530,0.11069082,116150.0,116140.0,2.08356928]
[1757708739530,0.11069082,116150.0,116140.0,1.83356928]
[1757708740429,0.0820049,116150.0,116140.0,1.83356928]
[1757708741823,0.0820049,116150.0,116140.0,1.03544928]
[1757708742026,0.1032449,116150.0,116140.0,1.03544928]
[1757708742425,0.1032449,116150.0,116140.0,1.83348928]
[1757708742625,0.4640449,116150.0,116140.0,1.83348928]
[1757708743135,0.1032449,116150.0,116140.0,1.83348928]
[1757708745332,0.13195931,116150.0,116140.0,1.83348928]
[1757708745839,0.1032449,116150.0,116140.0,1.83348928]
[1757708746436,0.13196605,116150.0,116140.0,1.97340529]
[1757708747528,0.13196605,116150.0,116140.0,1.17536529]
[1757708747726,0.49276605,116150.0,116140.0,1.97332529]
[1757708747932,0.49276605,116150.0,116140.0,1.78661686]
[1757708749048,0.49276605,116150.0,116140.0,1.78657686]
[1757708749242,0.49276605,116150.0,116140.0,0.98865686]
[1757708749547,0.50584605,116150.0,116140.0,1.78657686]
[1757708749748,0.49276605,116150.0,116140.0,1.78657686]
[1757708751347,0.49276605,116150.0,116140.0,0.98865686]
[1757708754047,0.13196605,116150.0,116140.0,0.98865686]
[1757708754248,0.49276605,116150.0,116140.0,0.98865686]
[1757708756754,0.13196605,116150.0,116140.0,0.98865686]
[1757708759960,0.49276605,116150.0,116140.0,0.98865686]
[1757708760159,0.13196605,116150.0,116140.0,1.17536529]
[1757708760958,0.49276605,116150.0,116140.0,1.17536529]
[1757708762259,0.49276605,116150.0,116140.0,0.98865686]
[1757708762959,0.49276605,116150.0,116140.0,1.17536529]
[1757708763160,0.13196605,116150.0,116140.0,1.17536529]
[1757708772268,0.13196605,116150.0,116140.0,1.97272529]
[1757708773064,0.13196605,116150.0,116140.0,1.17536529]
[1757708773367,0.13196605,116150.0,116140.0,1.97268529]
[1757708773563,0.13196605,116150.0,116140.0,1.17536529]
[1757708773872,0.75606605,116150.0,116140.0,0.97514686]
[1757708774061,0.74276605,116150.0,116140.0,0.98805686]
[1757708777669,1.53996605,116150.0,116140.0,0.98805686]
[1757708778174,0.74276605,116150.0,116140.0,0.98805686]
[1757708778371,1.30326605,116150.0,116140.0,0.98805686]
[1757708780872,0.50606605,116150.0,116140.0,0.98805686]
[1757708781063,1.73993448,116150.0,116140.0,0.60173]
[1757708781260,1.73993448,116150.0,116140.0,0.78843843]
[1757708781659,1.55322605,116150.0,116140.0,0.78843843]
[1757708781964,1.58391926,116150.0,116140.0,0.78843843]
[1757708782364,1.55322605,116150.0,116140.0,0.78843843]
[1757708782872,1.58391926,116150.0,116140.0,0.78843843]
[1757708783071,0.78675926,116150.0,116140.0,0.78843843]
[1757708783274,0.78675926,116150.0,116140.0,0.97514686]
[1757708783766,1.57053926,116150.0,116140.0,0.98844686]
[1757708783974,0.74276605,116150.0,116140.0,0.98844686]
[1757708784174,1.53980605,116150.0,116140.0,0.98844686]
[1757708788676,0.74276605,116150.0,116140.0,0.98844686]
[1757708788878,1.53972605,116150.0,116140.0,0.98844686]
[1757708789269,0.74276605,116150.0,116140.0,0.98844686]
[1757708789470,1.53968605,116150.0,116140.0,0.98844686]
[1757708789877,1.28968605,116150.0,116140.0,0.98844686]
[1757708797583,0.49276605,116150.0,116140.0,0.98844686]
[1757708797788,1.28948605,116150.0,116140.0,0.98844686]
[1757708799393,1.28948605,116150.0,116140.0,1.17515529]
[1757708800496,1.28948605,116150.0,116140.0,0.98844686]
[1757708802099,1.28948605,116150.0,116140.0,1.17515529]
[1757708802497,1.28948605,116150.0,116140.0,0.98844686]
[1757708802899,1.28948605,116150.0,116140.0,0.99284686]
[1757708806800,0.11072605,116150.0,116140.0,1.42955529]
[1757708807306,0.11072605,116150.0,116140.0,2.22591529]
[1757708808502,0.11072605,116150.0,116140.0,2.08582903]
[1757708810408,0.11072605,116150.0,116140.0,1.66579]
[1757708810706,0.11072605,116150.0,116140.0,2.08582903]
[1757708811509,0.0820049,116150.0,116140.0,2.08582903]
[1757708811910,0.11161302,116150.0,116140.0,2.08582903]
[1757708812905,0.11161302,116150.0,116140.0,1.28946903]
[1757708813312,0.11161302,116150.0,116140.0,2.08562903]
[1757708813499,0.47241302,116150.0,116140.0,2.08562903]
[1757708813706,0.47241302,116150.0,116140.0,1.28946903]
[1757708813906,0.47241302,116150.0,116140.0,2.08558903]
[1757708814407,0.11161302,116150.0,116140.0,2.08558903]
[1757708814817,0.47241302,116150.0,116140.0,2.08558903]
[1757708815514,0.47241302,116150.0,116140.0,1.28946903]
[1757708816016,0.47241302,116150.0,116140.0,2.08550903]
[1757708816810,0.47241302,116150.0,116140.0,1.28946903]
[1757708817017,0.47241302,116150.0,116140.0,2.08546903]
[1757708818815,0.47241302,116150.0,116140.0,1.28946903]
[1757708819016,0.47241302,116150.0,116140.0,2.08546903]
[1757708819912,0.10285007,116150.0,116140.0,2.08546903]
[1757708820111,0.10285007,116150.0,116140.0,1.28946903]
[1757708820315,0.08178359,116150.0,116140.0,2.08534903]
[1757708823614,0.08178359,116150.0,116140.0,1.28946903]
[1757708823813,0.08178359,116150.0,116140.0,2.08526903]
[1757708824011,0.07324195,116150.0,116140.0,2.44606903]
[1757708824620,0.07324195,116150.0,116140.0,2.08518903]
[1757708825013,0.07324195,116150.0,116140.0,1.28946903]
[1757708825213,0.10289483,116150.0,116140.0,1.28946903]
[1757708825419,0.10289483,116150.0,116140.0,2.08514903]
[1757708827325,0.11171406,116150.0,116140.0,2.08514903]
[1757708828321,0.11171406,116150.0,116140.0,1.28946903]
[1757708828522,0.11171406,116150.0,116140.0,2.08510903]
[1757708829323,0.08206118,116150.0,116140.0,2.08510903]
[1757708830215,0.07324195,116150.0,116140.0,2.44590903]
[1757708830411,0.10290098,116150.0,116140.0,2.44590903]
[1757708833432,0.07324195,116150.0,116140.0,2.44590903]
[1757708835029,0.10291551,116150.0,116140.0,2.44590903]
[1757708835930,0.07324195,116150.0,116140.0,2.44590903]
[1757708836323,0.10292023,116150.0,116140.0,2.44590903]
[1757708836629,0.10292023,116150.0,116140.0,2.44558903]
[1757708837525,0.10292023,116150.0,116140.0,1.65026903]
[1757708837723,0.10292023,116150.0,116140.0,2.44550903]
[1757708838733,0.10292023,116150.0,116140.0,1.65026903]
[1757708838936,0.10292023,116150.0,116140.0,2.44546903]
[1757708839233,0.88904324,116150.0,116140.0,0.74614301]
[1757708839634,0.74903023,116150.0,116140.0,0.88615602]
[1757708840238,0.74903023,116150.0,116140.0,0.60613]
[1757708840531,0.74903023,116150.0,116140.0,0.88615602]
[1757708840729,1.96426926,116150.0,116140.0,0.5844]
[1757708841636,1.99500611,116150.0,116140.0,0.5844]
[1757708842235,1.96426926,116150.0,116140.0,0.5844]
[1757708843031,1.99500611,116150.0,116140.0,0.5844]
[1757708843337,1.96426926,116150.0,116140.0,0.5844]
[1757708844333,1.99500611,116150.0,116140.0,0.4794]
[1757708844634,1.96426926,116150.0,116140.0,0.0044]
[1757708844831,1.99500611,116150.0,116120.0,0.01322]
[1757708845031,0.86161301,116130.0,116120.0,0.59322]
[1757708845232,1.68637129,116130.0,116120.0,0.59322]
[1757708846439,1.68737129,116130.0,116120.0,0.59322]
[1757708848344,1.96739731,116130.0,116120.0,0.59322]
[1757708848740,2.21739731,116130.0,116120.0,0.58]
[1757708848945,2.24813416,116130.0,116120.0,0.58]
[1757708849145,2.21739731,116130.0,116120.0,0.58]
[1757708849444,2.26350259,116130.0,116120.0,0.58]
[1757708849644,2.26346259,116130.0,116120.0,0.58]
[1757708850045,2.29413837,116130.0,116120.0,0.58]
[1757708850344,2.24803309,116130.0,116120.0,0.58]
[1757708850738,2.3795088,116130.0,116120.0,0.58]
[1757708852254,2.34883302,116130.0,116120.0,0.48699394]
[1757708852447,2.3795088,116130.0,116100.0,0.01322]
[1757708852639,0.42003903,116110.0,116100.0,0.39322]
[1757708852845,1.26457061,116110.0,116100.0,0.01322]
[1757708853253,0.46961061,116110.0,116080.0,0.01322]
[1757708853552,0.5196,116100.0,116090.0,0.01322]
[1757708853749,1.0569043,116100.0,116090.0,0.55322]
[1757708854042,1.1046643,116100.0,116090.0,0.55322]
[1757708854253,0.3097043,116100.0,116090.0,0.55322]
[1757708854446,0.8310243,116100.0,116090.0,0.55322]
[1757708855047,0.3097043,116100.0,116090.0,0.55322]
[1757708855349,0.8291043,116100.0,116090.0,0.54]
[1757708856049,0.8291043,116100.0,116090.0,0.542]
[1757708857141,1.5507043,116100.0,116090.0,0.544]
[1757708857341,1.62066379,116100.0,116090.0,0.544]
[1757708857743,1.65133957,116100.0,116090.0,0.544]
[1757708859853,1.13193957,116100.0,116090.0,0.544]
[1757708860051,1.13193957,116100.0,116090.0,0.68401301]
[1757708860242,1.97296485,116100.0,116090.0,0.544]
[1757708860444,1.97280129,116100.0,116090.0,0.544]
[1757708862156,1.94212551,116100.0,116090.0,0.544]
[1757708863054,1.94208551,116100.0,116090.0,0.544]
[1757708863756,2.08209852,116100.0,116090.0,0.544]
[1757708863956,2.08209852,116100.0,116090.0,0.55722]
[1757708864157,2.03595324,116100.0,116090.0,0.55722]
[1757708864758,1.89594023,116100.0,116090.0,0.55722]
[1757708865261,1.95741393,116100.0,116090.0,0.55722]
[1757708865459,1.94173953,116100.0,116090.0,0.55722]
[1757708866152,1.89590023,116100.0,116090.0,0.55722]
[1757708866858,1.75588722,116100.0,116090.0,0.71842301]
[1757708868466,1.8028212,116100.0,116090.0,0.76535699]
[1757708869065,1.8642949,116100.0,116090.0,0.76535699]
[1757708870362,1.67734791,116100.0,116090.0,0.76135699]
[1757708870568,1.67734791,116100.0,116090.0,0.76335699]
[1757708871164,1.67734791,116100.0,116090.0,0.74216699]
[1757708871358,1.8642949,116100.0,116090.0,0.74216699]
[1757708871553,1.8642949,116100.0,116090.0,0.55522]
[1757708873060,1.8642949,116100.0,116090.0,0.74216699]
[1757708874262,1.8028212,116100.0,116090.0,0.74216699]
[1757708874656,1.86407176,116100.0,116090.0,0.74216699]
[1757708875556,1.86407176,116100.0,116090.0,0.76334699]
[1757708877168,1.86407176,116100.0,116090.0,0.55522]
[1757708877361,1.86407176,116100.0,116090.0,0.74216699]
[1757708878261,1.8028212,116100.0,116090.0,0.74216699]
[1757708878460,1.8028212,116100.0,116090.0,0.74116699]
[1757708878662,1.8028212,116100.0,116090.0,0.74216699]
[1757708879068,1.8028212,116100.0,116090.0,0.74116699]
[1757708879269,1.8028212,116100.0,116090.0,0.76134699]
[1757708879468,1.8058212,116100.0,116090.0,0.76134699]
[1757708879658,1.8108212,116100.0,116090.0,0.76134699]
[1757708879863,1.8108212,116100.0,116090.0,0.74016699]
[1757708880063,1.8078212,116100.0,116090.0,0.74016699]
[1757708880370,1.8108212,116100.0,116090.0,0.69366109]
[1757708880571,1.88766333,116100.0,116090.0,0.69366109]
[1757708881271,1.88766333,116100.0,116090.0,0.71484109]
[1757708881674,1.88766333,116100.0,116090.0,0.69366109]
[1757708882074,1.88766333,116100.0,116090.0,0.71484109]
[1757708882475,1.88666333,116100.0,116090.0,0.5067141]
[1757708882675,1.88666333,116100.0,116090.0,0.69366109]
[1757708883072,1.88466333,116100.0,116090.0,0.69366109]
[1757708883276,1.88766333,116100.0,116090.0,0.5067141]
[1757708883979,1.88666333,116100.0,116090.0,0.5278941]
[1757708884180,1.88666333,116100.0,116090.0,0.5067141]
[1757708884379,1.8098212,116100.0,116090.0,0.22767522]
[1757708884579,1.8098212,116100.0,116090.0,0.24885522]
[1757708884775,1.8098212,116100.0,116090.0,0.5344]
[1757708884966,1.91543797,116100.0,116090.0,0.5344]
[1757708885170,1.91491797,116100.0,116090.0,0.5344]
[1757708885372,1.72797098,116100.0,116090.0,0.5344]
[1757708885678,1.91491797,116100.0,116090.0,0.72134699]
[1757708886677,1.91491797,116100.0,116090.0,0.5344]
[1757708886879,1.91491797,116100.0,116090.0,0.72134699]
[1757708887278,1.12063797,116100.0,116090.0,0.72134699]
[1757708887478,1.91483797,116100.0,116090.0,0.72134699]
[1757708887978,1.8072212,116100.0,116090.0,0.5344]
[1757708889178,1.8071412,116100.0,116090.0,0.5344]
[1757708889481,1.0130212,116100.0,116090.0,0.5344]
[1757708889672,1.8071412,116100.0,116090.0,0.72134699]
[1757708890473,1.86866418,116100.0,116090.0,0.72134699]
[1757708895083,1.86870418,116100.0,116090.0,0.72134699]
[1757708895479,1.8071812,116100.0,116090.0,0.72134699]
[1757708896184,1.8840833,116100.0,116090.0,0.5344]
[1757708896382,1.8840833,116100.0,116090.0,0.72134699]
[1757708897181,1.8071812,116100.0,116090.0,0.72134699]
[1757708897686,1.0855812,116100.0,116090.0,0.72134699]
[1757708897986,1.8069412,116100.0,116090.0,0.72134699]
[1757708898180,1.86846726,116100.0,116090.0,0.72134699]
[1757708899678,0.88764027,116100.0,116090.0,0.72134699]
[1757708899879,1.86834726,116100.0,116090.0,0.72134699]
[1757708902187,1.8068212,116100.0,116090.0,0.72134699]
[1757708902986,0.87225497,116100.0,116090.0,1.15829398]
[1757708903197,1.66589497,116100.0,116090.0,0.97134699]
[1757708904182,1.650505,116100.0,116090.0,0.97134699]
[1757708905885,1.650505,116100.0,116090.0,0.7844]
[1757708906088,1.650505,116100.0,116090.0,0.97134699]
[1757708910189,1.83745199,116100.0,116090.0,0.5344]
[1757708910390,2.02439898,116100.0,116090.0,0.5344]
[1757708911797,2.02439898,116100.0,116090.0,0.51322]
[1757708912197,2.02439898,116100.0,116090.0,0.53424]
[1757708913195,2.02439898,116100.0,116090.0,0.51322]
[1757708914289,2.07053974,116100.0,116090.0,0.51322]
[1757708914493,2.02439777,116100.0,116090.0,0.51322]
[1757708914695,2.28978895,116100.0,116090.0,0.42285713]
[1757708914898,2.27439777,116100.0,116090.0,0.42285713]
[1757708915100,2.28978895,116100.0,116090.0,0.42285713]
[1757708918590,1.49614895,116100.0,116090.0,0.42285713]
[1757708918808,2.28926895,116100.0,116090.0,0.42285713]
[1757708919292,2.03926895,116100.0,116090.0,0.42285713]
[1757708920002,2.03926895,116100.0,116090.0,0.39885688]
[1757708920799,2.03926895,116100.0,116090.0,0.37875688]
[1757708920996,1.66537497,116100.0,116090.0,0.37875688]
[1757708921301,2.03926895,116100.0,116090.0,0.37875688]
[1757708923107,2.05928017,116100.0,116090.0,0.37875688]
[1757708923400,2.08999616,116100.0,116090.0,0.37875688]
[1757708923601,2.08999616,116100.0,116090.0,0.31319865]
[1757708924202,2.05928017,116100.0,116090.0,0.31319865]
[1757708924894,2.08999455,116100.0,116090.0,0.31319865]
[1757708925292,2.08979455,116100.0,116090.0,0.31319865]
[1757708925496,2.05908017,116100.0,116090.0,0.31319865]
[1757708925793,1.26616017,116100.0,116090.0,0.31319865]
[1757708926002,2.49598716,116100.0,116090.0,0.12005364]
[1757708926219,0.0011,116070.0,116060.0,0.03476336]
[1757708926396,1.73928171,116070.0,116060.0,0.5]
[1757708926597,1.76999432,116070.0,116060.0,0.5]
[1757708926801,1.78982744,116070.0,116060.0,0.5]
[1757708927296,0.96627483,116070.0,116060.0,0.5]
[1757708927496,1.75911483,116070.0,116060.0,0.52102]
[1757708927698,0.99698744,116070.0,116060.0,0.52102]
[1757708927894,1.79833939,116070.0,116060.0,0.52102]
[1757708928205,1.79105939,116070.0,116060.0,0.5349]
[1757708928401,1.76034678,116070.0,116060.0,0.5359]
[1757708928906,0.96754678,116070.0,116060.0,0.5359]
[1757708929299,1.76030678,116070.0,116060.0,0.5359]
[1757708929505,1.76530678,116070.0,116060.0,0.5349]
[1757708930506,1.98658917,116070.0,116060.0,0.5349]
[1757708932497,2.12689471,116070.0,116060.0,0.5349]
[1757708932808,2.13417471,116070.0,116060.0,0.5349]
[1757708933209,1.71325809,116070.0,116060.0,0.5349]
[1757708933401,1.98654917,116070.0,116060.0,0.5349]
[1757708934006,1.19382917,116070.0,116060.0,0.67520554]
[1757708934307,1.19382917,116070.0,116060.0,0.5349]
[1757708934499,1.70589809,116070.0,116060.0,0.81551108]
[1757708934702,1.84620363,116070.0,116060.0,0.81551108]
[1757708935000,0.91321809,116070.0,116060.0,0.81551108]
[1757708935196,1.84616363,116070.0,116060.0,0.81551108]
[1757708936107,0.78559979,116070.0,116060.0,1.20581662]
[1757708936413,1.57819979,116070.0,116060.0,1.06551108]
[1757708936798,1.57819979,116070.0,116060.0,1.20581662]
[1757708937004,1.57819979,116070.0,116060.0,1.06551108]
[1757708937529,1.57819979,116070.0,116060.0,1.20581662]
[1757708937709,1.57819979,116070.0,116060.0,1.06551108]
[1757708938009,1.71850533,116070.0,116060.0,1.06551108]
[1757708938410,1.71650533,116070.0,116060.0,1.06551108]
[1757708938904,1.71550533,116070.0,116060.0,1.06551108]
[1757708939110,1.57519979,116070.0,116060.0,1.06551108]
[1757708939711,1.55536667,116070.0,116060.0,1.06551108]
[1757708940413,1.55536667,116070.0,116060.0,1.20581662]
[1757708941207,0.76276667,116070.0,116060.0,1.20581662]
[1757708941510,1.55410667,116070.0,116060.0,1.20581662]
[1757708944916,0.80299195,116070.0,116060.0,1.20581662]
[1757708946213,0.80199195,116070.0,116060.0,1.20581662]
[1757708946815,0.00955195,116070.0,116060.0,1.20581662]
[1757708947819,0.00955195,116070.0,116060.0,1.20681662]
[1757708949219,0.3608,116080.0,116060.0,1.85977662]
[1757708949422,0.38903326,116080.0,116070.0,0.45547662]
[1757708949724,0.3608,116080.0,116070.0,0.45547662]
[1757708950923,0.36921875,116080.0,116070.0,0.45547662]
[1757708951423,0.37021875,116080.0,116070.0,0.45547662]
[1757708952518,0.37021875,116080.0,116070.0,0.70547662]
[1757708952519,0.001,116080.0,116070.0,0.70547662]
[1757708953120,1.15296,116090.0,116080.0,0.03456]
[1757708953423,0.79216,116090.0,116080.0,0.45547662]
[1757708953624,1.22279949,116100.0,116090.0,0.03456]
[1757708953825,1.2510187,116100.0,116090.0,0.45547662]
[1757708954326,1.2510187,116100.0,116090.0,0.45447662]
[1757708954625,1.2510187,116100.0,116090.0,0.45247662]
[1757708954826,1.25957367,116100.0,116090.0,0.45247662]
[1757708955123,1.23435446,116100.0,116090.0,0.45247662]
[1757708955325,1.23435446,116100.0,116090.0,0.03156]
[1757708955525,1.23435446,116100.0,116090.0,0.45247662]
[1757708956024,0.44235446,116100.0,116090.0,0.03156]
[1757708956326,1.23623446,116100.0,116090.0,0.45247662]
[1757708956529,1.25808446,116100.0,116090.0,0.45247662]
[1757708957031,1.23623446,116100.0,116090.0,0.45247662]
[1757708957632,1.25808446,116100.0,116090.0,0.45247662]
[1757708958520,1.23623446,116100.0,116090.0,0.45247662]
[1757708959030,1.23623446,116100.0,116090.0,0.03156]
[1757708959230,1.25808446,116100.0,116090.0,0.45247662]
[1757708960429,1.23623446,116100.0,116090.0,0.45247662]
[1757708960634,1.25808446,116100.0,116090.0,0.45247662]
[1757708963130,1.23623446,116100.0,116090.0,0.45247662]
[1757708965426,0.87543446,116100.0,116090.0,0.45247662]
[1757708966941,0.87543446,116100.0,116090.0,0.03156]
[1757708967243,0.87543446,116100.0,116090.0,0.45247662]
[1757708967647,0.08355446,116100.0,116090.0,0.45247662]
[1757708968140,0.08355446,116100.0,116090.0,0.70247662]
[1757708968738,0.08355446,116100.0,116090.0,1.06327662]
[1757708968938,0.07499949,116100.0,116090.0,1.06327662]
[1757708969443,0.07499949,116100.0,116090.0,1.85467662]
[1757708969833,0.07399949,116100.0,116090.0,1.85467662]
[1757708970738,0.07099949,116100.0,116090.0,1.85467662]
[1757708970938,0.07199949,116100.0,116090.0,1.85467662]
[1757708974444,0.10011191,116100.0,116090.0,1.85467662]
[1757708977540,0.10011191,116100.0,116090.0,1.06327662]
[1757708977939,0.10011191,116100.0,116090.0,1.87251235]
[1757708979347,0.10011191,116100.0,116090.0,1.62251235]
[1757708979851,0.10011191,116100.0,116090.0,0.83143235]
[1757708980040,0.10011191,116100.0,116090.0,1.62247235]
[1757708980548,0.10011191,116100.0,116090.0,2.22247235]
[1757708982046,0.10011191,116100.0,116090.0,2.22243235]
[1757708985348,0.14503191,116100.0,116090.0,2.22243235]
[1757708985740,0.14503191,116100.0,116090.0,2.22227235]
[1757708990551,0.14503191,116100.0,116090.0,2.4091042]
[1757708992459,0.14503191,116100.0,116090.0,1.80135573]
[1757708992649,0.14503191,116100.0,116090.0,2.17501943]
[1757708997758,0.14503191,116100.0,116090.0,1.38417943]
[1757708997961,0.14503191,116100.0,116090.0,2.17469943]
[1757708998755,0.14403191,116100.0,116090.0,2.17669943]
[1757708999452,0.14403191,116100.0,116090.0,1.01251573]
[1757708999654,0.14403191,116100.0,116090.0,2.17669943]
[1757708999855,0.11591949,116100.0,116090.0,2.17669943]
[1757709000054,0.11491949,116100.0,116090.0,1.01451573]
[1757709000367,0.11491949,116100.0,116090.0,2.17865943]
[1757709001762,0.11491949,116100.0,116090.0,2.36549128]
[1757709001974,0.00847876,116110.0,116100.0,0.01349]
[1757709002171,0.05372261,116130.0,116120.0,0.03508]
[1757709002359,0.05372261,116130.0,116120.0,0.9587437]
[1757709002662,0.08192134,116130.0,116120.0,0.9587437]
[1757709003055,0.08192134,116130.0,116120.0,0.97689943]
[1757709003250,0.05120873,116130.0,116120.0,0.97689943]
[1757709003449,0.12127391,116130.0,116120.0,0.97689943]
[1757709003654,0.05120873,116130.0,116120.0,0.60323573]
[1757709003854,0.05120873,116130.0,116120.0,0.97689943]
[1757709004665,0.41200873,116130.0,116120.0,0.97689943]
[1757709005075,0.42051056,116130.0,116120.0,0.97689943]
[1757709008272,0.49087857,116130.0,116120.0,0.97689943]
[1757709010156,0.49087857,116130.0,116120.0,0.60323573]
[1757709010366,0.49087857,116130.0,116120.0,0.97689943]
[1757709016472,1.30167857,116130.0,116120.0,0.97689943]
[1757709020169,0.49087857,116130.0,116120.0,0.97689943]
[1757709020477,1.30071857,116130.0,116120.0,0.97689943]
[1757709023774,1.30071857,116130.0,116120.0,0.60323573]
[1757709023975,1.30071857,116130.0,116120.0,0.97689943]
[1757709027872,1.30071857,116130.0,116120.0,0.60323573]
[1757709028080,1.30071857,116130.0,116120.0,0.97689943]
[1757709031567,0.49087857,116130.0,116120.0,0.97689943]
[1757709031872,1.29931857,116130.0,116120.0,0.97689943]
[1757709032377,1.29895857,116130.0,116120.0,0.97689943]
[1757709037686,1.29755857,116130.0,116120.0,0.97689943]
[1757709038583,0.49087857,116130.0,116120.0,0.97689943]
[1757709038789,0.46790857,116130.0,116120.0,1.41373128]
[1757709039482,0.46790857,116130.0,116120.0,1.16373128]
[1757709047390,0.46790857,116130.0,116120.0,0.97689943]
[1757709047391,0.49043857,116130.0,116120.0,0.97689943]
[1757709051493,0.49043857,116130.0,116120.0,1.16373128]
[1757709052394,0.46790857,116130.0,116120.0,1.02347219]
[1757709055390,0.49008857,116130.0,116120.0,1.02347219]
[1757709061096,0.46790857,116130.0,116120.0,1.02347219]
[1757709064395,0.10710857,116130.0,116120.0,1.02347219]
[1757709064698,0.10710857,116130.0,116120.0,1.38427219]
[1757709064897,0.10710857,116130.0,116120.0,0.96403573]
[1757709065201,0.10710857,116130.0,116120.0,2.18531219]
[1757709065800,0.10710857,116130.0,116120.0,1.82451219]
[1757709067189,0.10710857,116130.0,116120.0,1.02347219]
[1757709067393,0.10710857,116130.0,116120.0,1.82451219]
[1757709068803,0.10710857,116130.0,116120.0,1.02347219]
[1757709068994,0.10710857,116130.0,116120.0,1.82375219]
[1757709069194,0.10710857,116130.0,116120.0,1.02347219]
[1757709069602,0.10710857,116130.0,116120.0,1.82367219]
[1757709069800,0.12928857,116130.0,116120.0,1.02347219]
[1757709077106,0.49008857,116130.0,116120.0,1.02347219]
[1757709080205,0.49008857,116130.0,116120.0,0.60323573]
[1757709080399,0.49008857,116130.0,116120.0,1.02347219]
[1757709081400,0.46790857,116130.0,116120.0,1.02347219]
[1757709088912,0.49081857,116130.0,116120.0,1.02347219]
[1757709091220,0.49114621,116130.0,116120.0,1.02347219]
[1757709091516,0.49114621,116130.0,116120.0,0.60323573]
[1757709091715,0.49114621,116130.0,116120.0,1.02347219]
[1757709094515,0.46823621,116130.0,116120.0,1.02347219]
[1757709100923,0.43970984,116130.0,116120.0,1.02347219]
[1757709101317,0.46832528,116130.0,116120.0,1.02347219]
[1757709103523,0.46832528,116130.0,116120.0,1.81835219]
[1757709106226,0.46832528,116130.0,116120.0,1.02347219]
[1757709106527,0.46832528,116130.0,116120.0,1.81775219]
[1757709108024,0.48989528,116130.0,116120.0,1.02347219]
[1757709108326,0.48989528,116130.0,116120.0,1.81751219]
[1757709112626,0.48989528,116130.0,116120.0,1.77085063]
[1757709117434,0.48989528,116130.0,116120.0,1.77081063]
[1757709118929,0.48989528,116130.0,116120.0,1.22081063]
[1757709119134,0.48989528,116130.0,116120.0,1.74081063]
[1757709120937,0.48989528,116130.0,116120.0,1.74077063]
[1757709122641,0.48989528,116130.0,116120.0,1.81077063]
[1757709124742,0.46832528,116130.0,116120.0,1.81077063]
[1757709126346,0.46832528,116130.0,116120.0,1.81073063]
[1757709127554,0.46832528,116130.0,116120.0,1.43715573]
[1757709127744,0.46832528,116130.0,116120.0,1.81073063]
[1757709141762,0.46832528,116130.0,116120.0,1.43715573]
[1757709141964,0.46832528,116130.0,116120.0,1.81061063]
[1757709142157,0.46832528,116130.0,116120.0,1.62382318]
[1757709142158,0.92671273,116130.0,116120.0,1.62382318]
[1757709142469,0.37912528,116130.0,116120.0,0.64323573]
[1757709142660,1.10072528,116130.0,116120.0,0.83002318]
[1757709143163,1.10072528,116130.0,116120.0,1.01681063]
[1757709144069,1.10072528,116130.0,116120.0,0.83002318]
[1757709144364,1.89452528,116130.0,116120.0,0.83002318]
[1757709145867,1.10072528,116130.0,116120.0,1.01681063]
[1757709149771,0.46832528,116130.0,116120.0,1.01681063]
[1757709152267,0.09902345,116130.0,116120.0,1.20359808]
[1757709152569,0.09902345,116130.0,116120.0,1.45359808]
[1757709153468,0.09902345,116130.0,116120.0,1.81439808]
[1757709154368,0.09902345,116130.0,116120.0,1.81539808]
[1757709154562,0.09902345,116130.0,116120.0,1.81639808]
[1757709155162,0.07040801,116130.0,116120.0,1.81639808]
[1757709155970,0.07040801,116130.0,116120.0,2.42917063]
[1757709156967,0.07040801,116130.0,116120.0,2.61595808]
[1757709158360,0.07040801,116130.0,116120.0,2.42917063]
[1757709159372,0.07040801,116130.0,116120.0,2.17917063]
[1757709159873,0.07040801,116130.0,116120.0,2.36595808]
[1757709160473,0.09911715,116130.0,116120.0,2.36595808]
[1757709160873,0.09911715,116130.0,116120.0,2.17917063]
[1757709161473,0.09911715,116130.0,116120.0,2.36595808]
[1757709164774,0.09911715,116130.0,116120.0,2.61595808]
[1757709165075,4e-05,116150.0,116140.0,0.03501]
[1757709165264,0.39827857,116150.0,116140.0,1.8209849]
[1757709166070,0.39827857,116150.0,116140.0,1.83914063]
[1757709166270,0.46957269,116150.0,116140.0,1.83914063]
[1757709166472,0.46957269,116150.0,116140.0,1.03674063]
[1757709166667,0.46957269,116150.0,116140.0,1.83922063]
[1757709167465,0.47057269,116150.0,116140.0,1.83922063]
[1757709174078,0.47057269,116150.0,116140.0,1.03674063]
[1757709174280,0.10103763,116150.0,116140.0,1.83814063]
[1757709174480,0.10103763,116150.0,116140.0,1.88463917]
[1757709174681,0.10103035,116150.0,116140.0,1.88463917]
[1757709176480,0.07233412,116150.0,116140.0,1.88463917]
[1757709177185,0.07233412,116150.0,116140.0,2.13463917]
[1757709179392,0.07233412,116150.0,116140.0,2.13391917]
[1757709179579,0.07129412,116150.0,116140.0,2.58951804]
[1757709179788,0.001,116150.0,116140.0,2.58951804]
[1757709180881,0.06951853,116150.0,116140.0,2.58951804]
[1757709181391,0.001,116150.0,116140.0,2.58951804]
[1757709181879,0.001,116150.0,116140.0,1.78883804]
[1757709182192,0.001,116150.0,116140.0,2.50247874]
[1757709182689,0.001,116150.0,116140.0,2.50243874]
[1757709183190,0.001,116150.0,116140.0,2.50235874]